Cogmind - Beta 13 X1 @@@ ROGUE MODE // 2023.08.27 @ 21:17:44 Player: VR-DUX Result: Destroyed by G-34 Mercenary with Small Laser Performance ------------- Evolutions (0) 0 Regions Visited (2) 400 Robots Destroyed (31) 155 Value Destroyed (740) 740 Prototype IDs (0) 0 Alien Tech Used (0) 0 Bonus (32) 32 TOTAL SCORE: 1327 Bonus ------- High Alert Combat Kills 32 Cogmind --------- Core Integrity 0/250 Matter 269/300 Energy 221/250 System Corruption 2% Temperature Cool (15) Movement Rolling (100) Location -10/Mines Parts ------- > --- POWER (1) -------- Ion Engine > --- PROPULSION (2) --- Compact Wheel Compact Wheel > --- UTILITY (2) ------ Large Storage Unit Structural Scanner > --- WEAPON (2) ------- EM Pulse Gun Light Assault Rifle > --- INVENTORY (15) --- Light Ion Engine Light Treads Light Treads Light Treads Heat Sink Small Storage Unit Medium Storage Unit Large Storage Unit Signal Interpreter Signal Interpreter Propulsion Shielding Medium Laser Mining Laser Peak State ------------ > --- POWER ------------ Ion Engine > --- PROPULSION ------- Light Treads Light Treads > --- UTILITY ---------- Heat Sink Large Storage Unit > --- WEAPON ----------- Medium Laser Assault Rifle > --- INVENTORY -------- Light Ion Engine Light Treads Light Treads Light Treads Wheel Compact Wheel Small Storage Unit Small Storage Unit Medium Laser Light Assault Rifle [Rating: 8] Favorites ----------- Power Ion Engine Engine Ion Engine Propulsion Light Treads Treads Light Treads Leg Aluminum Leg Wheel Compact Wheel Utility Large Storage Unit Device Structural Scanner Storage Large Storage Unit Weapon Medium Laser Energy Gun Medium Laser Ballistic Gun Light Assault Rifle Launcher Grenade Launcher Special Weapon Mining Laser Build | -11 -10 -10 ------- Run | Jun Mat Min Slots Evolved . | . . . Power . | . . . Propulsion . | . . . Utility . | . . . Weapon . | . . . Parts Attached 29 | . 28 1 Power 2 | . 2 . Engine 2 | . 2 . Core . | . . . Reactor . | . . . Propulsion 11 | . 11 . Treads 5 | . 5 . Leg . | . . . Wheel 6 | . 6 . Hover . | . . . Flight . | . . . Utility 4 | . 4 . Device 2 | . 2 . Storage 2 | . 2 . Processor . | . . . Hackware . | . . . Protection . | . . . Artifact . | . . . Weapon 12 | . 11 1 Energy Gun 3 | . 3 . Energy Cannon . | . . . Ballistic Gun 6 | . 5 1 Ballistic Cannon . | . . . Launcher 2 | . 2 . Special Weapon 1 | . 1 . Impact Weapon . | . . . Slashing Weapon . | . . . Piercing Weapon . | . . . Special Melee Weapon . | . . . Unidentified Prototypes . | . . . Parts Lost 2 | . 2 . Power 1 | . 1 . Propulsion . | . . . Utility . | . . . Weapon 1 | . 1 . Highest Loss Streak 1 | . 1 . To Critical Strikes . | . . . Average Slot Usage (%) 89 | . 89 100 Engine 12 | . 12 14 Treads 14 | . 14 . Wheel 9 | . 9 28 Device 8 | . 8 14 Storage 14 | . 14 14 Energy Gun 16 | . 16 14 Ballistic Gun 10 | . 10 14 Naked Turns . | . . . Heaviest Build 31 | 12 31 . Greatest Support 40 | 20 40 . Greatest Overweight (x) 3 | . 3 . Average Overweight (x) . | . . . Largest Inventory Capacity 15 | . 15 15 Average Capacity 12 | . 12 15 Most Carried 15 | . 15 13 Average Carried 10 | . 10 13 Final Capacity 15 | 8 15 15 Final Carried 13 | 6 13 13 Class Distribution -------------------- 100% | Mutant Dominant Class ---------------- Mutant | -10/Materials Mutant | -10/Mines Resources | -11 -10 -10 ----------- Run | Jun Mat Min Matter Collected 876 | 200 676 . Remotely . | . . . Salvage Created 989 | . 989 . Parts 57 | . 57 . Haulers Intercepted 1 | . 1 . Recyclers Shooed 3 | . 3 . Parts Field Recycled . | . . . Retrieved Matter . | . . . Parts Self-Destructed . | . . . Prevented . | . . . Kills | -11 -10 -10 ------- Run | Jun Mat Min Combat Hostiles Destroyed 19 | . 19 . Guns 10 | . 10 . AOE 9 | . 9 . Classes Destroyed 8 | . 8 . Worker 1 | . 1 . Builder 3 | . 3 . Hauler 1 | . 1 . Recycler 4 | . 4 . Operator 1 | . 1 . Watcher 2 | . 2 . Swarmer 3 | . 3 . Grunt 16 | . 16 . Best Kill Streak 8 | . 8 . Combat Bots Only 7 | . 7 . Max Kills in Single Turn 2 | . 2 . Gunslinging . | . . . Exploded 2 | . 2 . Melee . | . . . Uniques/NPCs Destroyed . | . . . Combat | -11 -10 -10 -------- Run | Jun Mat Min Damage Taken 1106 | . 1061 45 Core 253 | . 225 28 Absorbed by Shields . | . . . Regen/Repaired (Parts) 61 | . 61 . Core Remaining (%) 100 | 100 . . Volleys Fired 162 | . 161 1 Largest 2 | . 2 2 Hottest 100 | . 100 60 Shots Fired 294 | . 292 2 Gun 277 | . 275 2 Cannon . | . . . Launcher 16 | . 16 . Special 1 | . 1 . Kinetic 136 | . 135 1 Thermal 113 | . 113 . Explosive 16 | . 16 . Electromagnetic 29 | . 28 1 Robot Hit Streak 12 | . 12 1 Robot Miss Streak 5 | . 5 1 Penetration Max . | . . . Secondary Targets 2 | . 2 . Max Gunslinging Chain 1 | . 1 . Shots Hit Robots 133 | . 132 1 Core Hits 59 | . 58 1 Critical Kills . | . . . Critical Parts Destroyed 1 | . 1 . Critical Strikes 8 | . 8 . Burn 6 | . 6 . Destroy 1 | . 1 . Corrupt 1 | . 1 . Melee Attacks . | . . . Impact . | . . . Slashing . | . . . Piercing . | . . . Sneak Attacks . | . . . Combat Hostiles . | . . . Follow-up Attacks . | . . . Damage Inflicted 2086 | . 2079 7 Guns 1546 | . 1539 7 Cannons . | . . . Explosions 537 | . 537 . Melee . | . . . Ramming 3 | . 3 . Kinetic 687 | . 680 7 Thermal 687 | . 687 . Explosive 537 | . 537 . Electromagnetic 172 | . 172 . Impact . | . . . Slashing . | . . . Piercing . | . . . Highest Corruption 2 | . 2 2 Average Corruption 2 | . 2 2 Corruption Purged . | . . . Corruption Blocked . | . . . Effects 7 | . 7 . Message Errors 1 | . 1 . Matter Fused 1 | . 1 . Heat Flow Errors 3 | . 3 . Data Loss (minor) 2 | . 2 . Overload Shots . | . . . Overflow Damage 12 | . 12 . Projectiles . | . . . Explosions 12 | . 12 . Melee . | . . . Knockbacks . | . . . Impact . | . . . Kinetic . | . . . Secondary . | . . . Self-Inflicted Damage 98 | . 98 . Shots 4 | . 4 . Rammed . | . . . Targets Rammed 1 | . 1 . Kicked 1 | . 1 . Crushed . | . . . Highest Temperature 250 | . 250 . Average Temperature 70 | . 70 . Received Heat Transfer 552 | . 528 24 Effects 1 | . 1 . Interference 1 | . 1 . Siege Activations . | . . . Robots Corrupted . | . . . Combat Hostiles . | . . . Parts Fried . | . . . Impact Corruptions . | . . . Robots Melted . | . . . Combat Hostiles . | . . . Parts Melted 3 | . 3 . Heat Transferred 2479 | . 2479 . Parts Sabotaged . | . . . Parts Stolen . | . . . Parts Stripped . | . . . Power Chain Reactions . | . . . Missiles Intercepted . | . . . Alert | -11 -10 -10 ------- Run | Jun Mat Min Peak Influence 546 | . 546 186 Initial 186 | . . 186 Average 196 | . 196 186 Maximum Alert Level 2 | . 2 . Low Security (%) 70 | . 69 100 Level 1 3 | . 3 . Level 2 26 | . 26 . Level 3 . | . . . Level 4 . | . . . Level 5 . | . . . High Security . | . . . Max Security . | . . . Squads Dispatched 6 | . 6 . Investigation 3 | . 3 . Extermination . | . . . Reinforcement 3 | . 3 . Assault . | . . . Garrison . | . . . Intercept . | . . . Searches Triggered . | . . . Construction Impeded . | . . . Haulers Reinforced . | . . . Active Scanning Responses . | . . . Cargo Convoy Interrupts . | . . . Stealth | -11 -10 -10 --------- Run | Jun Mat Min Distress Signals 1 | . 1 . Communications Jammed . | . . . Distress Signals . | . . . Times Spotted 48 | . 46 2 Peak Tracking Total 4 | . 4 2 Tactical Retreats 2 | . 2 . Traps | -11 -10 -10 ------- Run | Jun Mat Min Traps Triggered 2 | . 2 . Indirectly . | . . . Trap Hack Attempts . | . . . Triggered . | . . . Disarmed . | . . . Reprogrammed . | . . . Reused . | . . . Traps Extracted . | . . . Installed . | . . . Triggered . | . . . Machines | -11 -10 -10 ---------- Run | Jun Mat Min Machines Disabled 5 | . 5 . Max in Single Turn 3 | . 3 . Machines Repaired . | . . . Machines Sabotaged . | . . . Overloaded Fab Kills . | . . . Hacking | -11 -10 -10 --------- Run | Jun Mat Min Machines Accessed 5 | . 5 . Terminals 2 | . 2 . Fabricators . | . . . Repair Stations 1 | . 1 . Recycling Units 2 | . 2 . Scanalyzers . | . . . Garrison Access . | . . . Total Hacks 11 | . 11 . Successful 5 | . 5 . Failed 6 | . 6 . Catastrophic 2 | . 2 . Database Lockouts . | . . . Manual 4 | . 4 . Terminals 4 | . 4 . Fabricators . | . . . Repair Stations 4 | . 4 . Recycling Units 3 | . 3 . Scanalyzers . | . . . Garrison Access . | . . . Terminal Hacks . | . . . Fabricator Hacks . | . . . Repair Station Hacks 4 | . 4 . Scan Component 2 | . 2 . Repair 2 | . 2 . Recycling Unit Hacks 1 | . 1 . Retrieve Components 1 | . 1 . Scanalyzer . | . . . Garrison Access Hacks . | . . . Unauthorized Hacks . | . . . Terminals . | . . . Fabricators . | . . . Repair Stations . | . . . Recycling Units . | . . . Scanalyzers . | . . . Garrison Access . | . . . Data Cores Recovered . | . . . Used . | . . . Hacking Detections 4 | . 4 . Full Trace Events 3 | . 3 . Feedback Events . | . . . Feedback Blocked . | . . . Robot Schematics Acquired . | . . . Robots Built . | . . . Authchips . | . . . Time . | . . . Total Robot Build Rating . | . . . Part Schematics Acquired . | . . . Parts Built . | . . . Authchips . | . . . Time . | . . . Total Part Build Rating . | . . . Parts Repaired 2 | . 2 . Time 52 | . 52 . Parts Recycled . | . . . Recycled Matter . | . . . Retrieved Matter . | . . . Retrieved Components 1 | . 1 . Parts Scanalyzed . | . . . Part Schematics Acquired . | . . . Parts Damaged . | . . . Bothacking | -11 -10 -10 ------------ Run | Jun Mat Min Used RIF Installer . | . . . Robots Hacked . | . . . Non-combat . | . . . Combat . | . . . Robot Hacks Applied . | . . . Relay Couplers Released . | . . . Fabnet Peak Effective % . | . . . Robots Rewired . | . . . Allies Hacked . | . . . Hacks Repelled . | . . . Allies | -11 -10 -10 -------- Run | Jun Mat Min Total Allies . | . . . Largest Group . | . . . Highest-Rated Group . | . . . Highest-Rated Ally . | . . . Total Orders . | . . . Ally Attacks . | . . . Total Damage . | . . . Kills . | . . . Allies Corrupted . | . . . Allies Melted . | . . . Intel | -11 -10 -10 ------- Run | Jun Mat Min Robot Analysis Total . | . . . Derelict Logs Recovered . | . . . Drone Launches . | . . . Drone Recoveries . | . . . Exploration | -11 -10 -10 ------------- Run | Jun Mat Min Turns Passed 1770 | . 1768 2 Spaces Moved 927 | 1 926 . Core 1 | . 1 . Treads 360 | . 360 . Legs 36 | 1 35 . Wheels 530 | . 530 . Hover . | . . . Flight . | . . . Fastest Speed 100 | 120 100 . Average Speed 129 | 120 129 . Slowest Speed 200 | 120 200 . Overloaded Moves . | . . . Propulsion Burnouts . | . . . Robots Hopped . | . . . Cave-ins Triggered . | . . . Exploration Rate (%) 34 | 2 97 4 Regions Visited 2 Branch Regions 1 Pre-discovered Areas . | . . . Known Exits Taken . | . . . Unknown Exits Taken 2 | 1 1 . Scrap Searched . | . . . Spaces Dug 1 | . 1 . Terrain Destroyed 112 | . 112 . Melee . | . . . Projectile 1 | . 1 . AOE 111 | . 111 . Terrain Rammed . | . . . Walls Destroyed . | . . . Machines Disabled . | . . . Actions | -11 -10 -10 --------- Run | Jun Mat Min Total 1222 | . 1220 2 Wait 70 | . 70 . Move 925 | . 925 . Hop . | . . . Pick Up 16 | . 16 . Fast Attach 7 | . 7 . Attach 7 | . 7 . Detach 2 | . 2 . Swap 15 | . 14 1 Drop 17 | . 17 . Fire 162 | . 161 1 Melee . | . . . Ram . | . . . Kick 1 | . 1 . Crush . | . . . Escape Stasis . | . . . Rewire . | . . . Trap . | . . . Miscellaneous . | . . . Route ------- -11/Junkyard -10/Materials (discovered 5 exits: [*Mat x3] / [*Min x2]) -10/Mines History --------- Turn | Location | Event 1 | -11/Junkyard | Discovered new exit (range 0) 1 | -11/Junkyard | Entered Materials 317 | -10/Materials | Build established: Mutant 328 | -10/Materials | Discovered new exit (range 13) 515 | -10/Materials | Discovered new exit (range 5) 540 | -10/Materials | Discovered new exit (range 16) 926 | -10/Materials | Core integrity fell below 50% 1005 | -10/Materials | Discovered new exit (range 15) 1214 | -10/Materials | Discovered new exit (range 16) 1285 | -10/Materials | Core integrity fell below 20% 1327 | -10/Materials | Destroyed 7 combat bots 1427 | -10/Materials | Repaired EM Pulse Gun 1462 | -10/Materials | Repaired Com. Wheel 1769 | -10/Materials | Entered Mines 1771 | -10/Mines | Destroyed by G-34 Mercenary with Small Laser Last Messages --------------- 01616_ K-01 Serf collects debris. 01617_ R-06 Scavenger collects Terrain Scan Processor. 01621_ K-01 Serf collects debris. 01621_ R-06 Scavenger collects Corrupted Welding Torch. 01624_ Door malfunctions. 01630_ R-06 Scavenger destroyed. 01631_ System corrupted: Matter fused (-9). 01631_ Acquired 9 matter. 01631_ R-06 Scavenger collects Terrain Scanner. 01633_ K-01 Serf collects debris. 01634_ R-06 Scavenger collects Wheel. 01637_ K-01 Serf collects debris. 01640_ R-06 Scavenger collects Corrupted Structural Scanner. 01643_ R-06 Scavenger collects Tractor Beam. 01653_ System corrupted: Heat flow error (+116). 01666_ Acquired Mining Laser. 01688_ U-05 Engineer builds a Wall. LOCATION=UNKNOWN GOAL=ESCAPE Something is scanning the area. Map ----- +----------------------------------------------------+ | ????????????????????????????????????????????????? | | ????????????????????????????????????????????????? | | ????????????????????????????????????????????????? | | ????????????????????????????????????????????????? | | ????????????????????????????????????????????????? | | ????????????????????????????????????????????????? | | ????????????????????????????????????????????????? | | ????????????????????????????????????????????????? | | ????????????????????????????????????????????????? | | ????????????????????????????????????????????????? | | ????????????????????????????????????????????????? | | ????????????????????????????????????????????????? | | ????????????????????????????????????????????????? | | ???????????????????????????? ##?????????????????? | | ???????????????????????????? ##?????????????????? | | ???????????????????????????? ##?????????????????? | | ?????????????????????????### ##?????????????????? | | ?????????????????????????### ???????????????????? | | ????????????????????????? ???????????????????? | | ?????????????????????????? ???????????????????? | | ????????????????????????? ##???????????????????? | | ????????????????????????? ##???????????????????? | | ??????????????????????### ##???????????????????? | | ?????????????????????#### ##???????????????????? | | ?????????????????????### ##???????????????????? | | ????????????????????### @ ###??????????????????? | | ???????????????????### ##??????????????????? | | ???????????????????## g ?????????????????? | | ???????????????????## g $ ??????????????? | | ??????????????????? ### ????????????? | | ????????????????? #### ## ??????????? | | ???????????????## ### ####?? ####? ??????????? | | ???????????????## ### #####??? ###?????????????? | | ???????????????## ?## ####?????????????????????? | | ???????????????????## ?????????????????????????? | | ???????????????????## ?????????????????????????? | | ???????????????????## ?????????????????????????? | | ???????????????????## ??????????????????????????? | | ???????????????????## ??????????????????????????? | | ???????????????????# ??????????????????????????? | | ????????????????????????????????????????????????? | | ????????????????????????????????????????????????? | | ????????????????????????????????????????????????? | | ????????????????????????????????????????????????? | | ????????????????????????????????????????????????? | | ????????????????????????????????????????????????? | | ????????????????????????????????????????????????? | | ????????????????????????????????????????????????? | | ????????????????????????????????????????????????? | | ????????????????????????????????????????????????? | +----------------------------------------------------+ Best States ------------- Heat Dissipation 35 Energy Generation 10 Energy Capacity 250 Matter Stores 300 Matter Capacity 300 Sight Range 16 Terrain Scan Density 10 Evasion (%) 55 Recoil Reduction 2 Item Schematics ----------------- None Robot Schematics ------------------ None Fabricated ------------ Nothing Alien Tech Used ----------------- None Achievements -------------- None Challenges ------------ None Game ------ Seed SpreadNovaSubcomponent Manual? 0 Play Time 00:20:09 Cumulative 75.1 hours Start 2023.08.27 @ 20:56:19 End 2023.08.27 @ 21:17:44 Sessions 1 Manual Loads 0 Difficulty Rogue Special Mode None Game No. 69 Rogue 69 Adventurer 0 Explorer 0 Win Type - Total 1 Types 1/0/0/0/0/0/0/0/0 Lore% 41 Gallery% 34 Achievement% 37 Wizard Run 0 Options --------- ASCII 0 Keyboard 0 Movement Mouse Keybinds 0 Fullscreen 1 Font 16/SmallcapsGlow Map View 84x54 Tactical HUD 1 Map Filters NONE Filters NONE Steam 1 RUN: 5313eb27-a8a5-4204-85f0-e3a42ca8ad93